[Event "Ruzomberok Closed 2020 - 3. turnaj"]
[Site "Ruzomberok, Slovakia"]
[Date "2020.09.05"]
[Round "4.1"]
[White "Holly, Andrej"]
[Black "Konkol, Emil"]
[Result "1-0"]
[TimeControl "10m + 5s"]
[WhiteElo "1714"]
[BlackElo "1799"]

1. e4 {[%clk 00:10:09]} {[%emt 00:00:01]} e5 {[%clk 00:10:09]} {[%emt
00:00:01]} 2. Nf3 {[%clk 00:10:13]} {[%emt 00:00:01]} Nc6 {[%clk 00:10:13]}
{[%emt 00:00:02]} 3. Bb5 {[%clk 00:10:16]} {[%emt 00:00:01]} a6 {[%clk
00:10:17]} {[%emt 00:00:01]} 4. Ba4 {[%clk 00:10:20]} Nf6 {[%clk 00:10:19]}
{[%emt 00:00:02]} 5. d4 {[%clk 00:10:24]} {[%emt 00:00:01]} exd4 {[%clk
00:10:22]} {[%emt 00:00:03]} 6. O-O {[%clk 00:10:27]} {[%emt 00:00:02]} d6
{[%clk 00:10:19]} {[%emt 00:00:08]} 7. Nxd4 {[%clk 00:10:06]} {[%emt 00:00:26]}
Bd7 {[%clk 00:10:23]} {[%emt 00:00:01]} 8. Nxc6 {[%clk 00:10:08]} {[%emt
00:00:03]} Bxc6 {[%clk 00:10:26]} {[%emt 00:00:02]} 9. Bxc6+ {[%clk 00:10:12]}
{[%emt 00:00:02]} bxc6 {[%clk 00:10:29]} {[%emt 00:00:02]} 10. Nc3 {[%clk
00:09:46]} {[%emt 00:00:30]} Be7 {[%clk 00:10:32]} {[%emt 00:00:03]} 11. f4
{[%clk 00:09:40]} {[%emt 00:00:11]} O-O {[%clk 00:10:32]} {[%emt 00:00:04]} 12.
Qf3 {[%clk 00:08:56]} {[%emt 00:00:49]} c5 {[%clk 00:10:19]} {[%emt 00:00:18]}
13. Be3 {[%clk 00:08:26]} {[%emt 00:00:35]} Rb8 {[%clk 00:10:20]} {[%emt
00:00:04]} 14. b3 {[%clk 00:08:07]} {[%emt 00:00:23]} Nd7 {[%clk 00:10:22]}
{[%emt 00:00:03]} 15. Rad1 {[%clk 00:06:53]} {[%emt 00:01:20]} Nb6 {[%clk
00:10:10]} {[%emt 00:00:17]} 16. Nd5 {[%clk 00:05:11]} {[%emt 00:01:47]} Nxd5
{[%clk 00:10:12]} {[%emt 00:00:03]} 17. Rxd5 {[%clk 00:05:15]} {[%emt
00:00:01]} c6 {[%clk 00:10:13]} {[%emt 00:00:03]} 18. Rd3 {[%clk 00:04:47]}
{[%emt 00:00:33]} Qa5 {[%clk 00:09:59]} {[%emt 00:00:19]} 19. e5 {[%clk
00:03:27]} {[%emt 00:01:24]} d5 {[%clk 00:09:41]} {[%emt 00:00:23]} 20. a4
{[%clk 00:03:11]} {[%emt 00:00:21]} c4 {[%clk 00:09:40]} {[%emt 00:00:06]} 21.
bxc4 {[%clk 00:03:10]} {[%emt 00:00:06]} Qxa4 {[%clk 00:09:43]} {[%emt
00:00:01]} 22. cxd5 {[%clk 00:02:54]} {[%emt 00:00:21]} Qxc2 {[%clk 00:09:32]}
{[%emt 00:00:17]} 23. Rd2 {[%clk 00:02:39]} {[%emt 00:00:20]} Qc3 {[%clk
00:09:05]} {[%emt 00:00:29]} 24. d6 {[%clk 00:02:23]} {[%emt 00:00:24]} Bd8
{[%clk 00:09:00]} {[%emt 00:00:10]} 25. Re2 {[%clk 00:02:17]} {[%emt 00:00:11]}
a5 {[%clk 00:08:01]} {[%emt 00:01:04]} 26. Rc1 {[%clk 00:02:14]} {[%emt
00:00:08]} Qd3 {[%clk 00:07:36]} {[%emt 00:00:28]} 27. Rd2 {[%clk 00:02:10]}
{[%emt 00:00:09]} Qb5 {[%clk 00:07:01]} {[%emt 00:00:40]} 28. Qxc6 {[%clk
00:02:07]} {[%emt 00:00:08]} Qb3 {[%clk 00:05:57]} {[%emt 00:01:07]} 29. Bc5
{[%clk 00:01:49]} {[%emt 00:00:26]} Bb6 {[%clk 00:05:06]} {[%emt 00:00:55]} 30.
Bxb6 {[%clk 00:01:45]} {[%emt 00:00:09]} Rxb6 {[%clk 00:05:08]} {[%emt
00:00:02]} 31. Qc3 {[%clk 00:01:39]} {[%emt 00:00:11]} Qxc3 {[%clk 00:03:06]}
{[%emt 00:02:07]} 32. Rxc3 {[%clk 00:01:43]} Rd8 {[%clk 00:03:02]} {[%emt
00:00:09]} 33. Rc7 {[%clk 00:01:29]} {[%emt 00:00:19]} Kf8 {[%clk 00:03:01]}
{[%emt 00:00:05]} 34. Ra7 {[%clk 00:01:31]} {[%emt 00:00:04]} Rb5 {[%clk
00:02:53]} {[%emt 00:00:13]} 35. Rc2 {[%clk 00:01:26]} {[%emt 00:00:09]} Ke8
{[%clk 00:02:01]} {[%emt 00:00:56]} 36. Rcc7 {[%clk 00:01:22]} {[%emt
00:00:10]} Rb1+ {[%clk 00:01:53]} {[%emt 00:00:13]} 37. Kf2 {[%clk 00:01:26]}
{[%emt 00:00:01]} Rb2+ {[%clk 00:01:57]} 38. Kg3 {[%clk 00:01:28]} {[%emt
00:00:02]} Rb3+ {[%clk 00:02:01]} {[%emt 00:00:02]} 39. Kg4 {[%clk 00:01:32]}
h5+ {[%clk 00:02:05]} {[%emt 00:00:01]} 40. Kf5 {[%clk 00:01:27]} {[%emt
00:00:10]} g6+ {[%clk 00:01:22]} {[%emt 00:00:47]} 41. Kf6 {[%clk 00:01:31]}
{[%emt 00:00:02]} Rb4 {[%clk 00:01:24]} {[%emt 00:00:03]} 42. Re7+ {[%clk
00:01:32]} {[%emt 00:00:03]} Kf8 {[%clk 00:01:29]} 43. Rxf7+ {[%clk 00:01:36]}
{[%emt 00:00:02]} Kg8 {[%clk 00:01:33]} 44. Rg7+ {[%clk 00:01:39]} {[%emt
00:00:02]} Kf8 {[%clk 00:01:33]} {[%emt 00:00:04]} 45. Raf7+ {[%clk 00:01:41]}
{[%emt 00:00:03]} Ke8 {[%clk 00:01:38]} 46. Rg8# 1-0

[Event "Ruzomberok Closed 2020 - 3. turnaj"]
[Site "Ruzomberok, Slovakia"]
[Date "2020.09.05"]
[Round "4.2"]
[White "Gasper, Jaroslav"]
[Black "Jurgos, Samuel"]
[Result "0-1"]
[TimeControl "10m + 5s"]
[WhiteElo "1721"]
[BlackElo "1073"]

1. e4 {[%clk 00:10:09]} {[%emt 00:00:01]} c5 {[%clk 00:10:09]} {[%emt
00:00:02]} 2. b4 {[%clk 00:10:13]} {[%emt 00:00:01]} b6 {[%clk 00:10:10]}
{[%emt 00:00:03]} 3. Bb2 {[%clk 00:10:17]} Bb7 {[%clk 00:10:07]} {[%emt
00:00:08]} 4. d3 {[%clk 00:10:08]} {[%emt 00:00:15]} Nc6 {[%clk 00:10:09]}
{[%emt 00:00:02]} 5. bxc5 {[%clk 00:09:55]} {[%emt 00:00:18]} bxc5 {[%clk
00:10:09]} {[%emt 00:00:05]} 6. Nc3 {[%clk 00:09:50]} {[%emt 00:00:10]} Nf6
{[%clk 00:09:55]} {[%emt 00:00:19]} 7. f4 {[%clk 00:09:52]} {[%emt 00:00:03]}
d5 {[%clk 00:09:43]} {[%emt 00:00:17]} 8. e5 {[%clk 00:09:56]} {[%emt
00:00:01]} Nd7 {[%clk 00:09:44]} {[%emt 00:00:03]} 9. Nxd5 {[%clk 00:09:59]}
{[%emt 00:00:02]} Ncxe5 {[%clk 00:08:30]} {[%emt 00:01:20]} 10. c4 {[%clk
00:07:53]} {[%emt 00:02:11]} Bxd5 {[%clk 00:07:51]} {[%emt 00:00:44]} 11. fxe5
{[%clk 00:07:52]} {[%emt 00:00:06]} Qa5+ {[%clk 00:07:28]} {[%emt 00:00:28]} 12.
Qd2 {[%clk 00:07:57]} Qxd2+ {[%clk 00:07:24]} {[%emt 00:00:09]} 13. Kxd2 {[%clk
00:08:02]} Rb8 {[%clk 00:07:26]} {[%emt 00:00:03]} 14. Bc3 {[%clk 00:07:55]}
{[%emt 00:00:12]} Ba8 {[%clk 00:07:21]} {[%emt 00:00:10]} 15. Nf3 {[%clk
00:07:46]} {[%emt 00:00:14]} e6 {[%clk 00:06:54]} {[%emt 00:00:32]} 16. Be2
{[%clk 00:07:44]} {[%emt 00:00:07]} Be7 {[%clk 00:06:57]} {[%emt 00:00:02]} 17.
Rab1 {[%clk 00:07:02]} {[%emt 00:00:48]} O-O {[%clk 00:06:56]} {[%emt
00:00:06]} 18. h4 {[%clk 00:07:00]} {[%emt 00:00:06]} Bxf3 {[%clk 00:06:22]}
{[%emt 00:00:38]} 19. Bxf3 {[%clk 00:06:21]} {[%emt 00:00:44]} Bxh4 {[%clk
00:06:19]} {[%emt 00:00:09]} 20. Rxb8 {[%clk 00:06:22]} {[%emt 00:00:04]} Bg5+
{[%clk 00:06:22]} {[%emt 00:00:02]} 21. Kc2 {[%clk 00:06:14]} {[%emt 00:00:13]}
Rxb8 {[%clk 00:06:26]} {[%emt 00:00:02]} 22. Be4 {[%clk 00:05:29]} {[%emt
00:00:50]} h6 {[%clk 00:06:01]} {[%emt 00:00:30]} 23. g3 {[%clk 00:04:58]}
{[%emt 00:00:35]} Be3 {[%clk 00:05:53]} {[%emt 00:00:13]} 24. Bc6 {[%clk
00:04:23]} {[%emt 00:00:40]} Nf8 {[%clk 00:04:47]} {[%emt 00:01:11]} 25. Rf1
{[%clk 00:03:18]} {[%emt 00:01:09]} Ng6 {[%clk 00:04:23]} {[%emt 00:00:30]} 26.
Rf3 {[%clk 00:02:28]} {[%emt 00:00:55]} Bd4 {[%clk 00:03:00]} {[%emt 00:01:29]}
27. Bxd4 {[%clk 00:01:44]} {[%emt 00:00:49]} cxd4 {[%clk 00:03:03]} {[%emt
00:00:02]} 28. Rf1 {[%clk 00:01:07]} {[%emt 00:00:42]} Nxe5 {[%clk 00:03:02]}
{[%emt 00:00:05]} 29. Bb5 {[%clk 00:00:59]} {[%emt 00:00:13]} Ng4 {[%clk
00:02:59]} {[%emt 00:00:07]} 30. Rb1 {[%clk 00:00:32]} {[%emt 00:00:33]} Ne3+
{[%clk 00:02:53]} {[%emt 00:00:11]} 31. Kd2 {[%clk 00:00:19]} {[%emt 00:00:18]}
a6 {[%clk 00:02:57]} {[%emt 00:00:02]} 32. a4 {[%clk 00:00:20]} {[%emt
00:00:04]} axb5 {[%clk 00:02:59]} {[%emt 00:00:02]} 33. cxb5 {[%clk 00:00:19]}
{[%emt 00:00:06]} Nd5 {[%clk 00:02:56]} {[%emt 00:00:08]} 34. Kc2 {[%clk
00:10:05]} {[%emt 00:00:20]} 0-1

[Event "Ruzomberok Closed 2020 - 3. turnaj"]
[Site "Ruzomberok, Slovakia"]
[Date "2020.09.05"]
[Round "4.3"]
[White "Jurky, Marian"]
[Black "Gollner, Martin"]
[Result "0-1"]
[TimeControl "10m + 5s"]
[WhiteElo "1347"]
[BlackElo "1123"]

1. e4 {[%clk 00:10:08]} {[%emt 00:00:02]} c5 {[%clk 00:10:09]} {[%emt
00:00:01]} 2. Nf3 {[%clk 00:10:10]} {[%emt 00:00:02]} e6 {[%clk 00:10:13]}
{[%emt 00:00:01]} 3. c3 {[%clk 00:10:13]} {[%emt 00:00:03]} Nc6 {[%clk
00:10:16]} {[%emt 00:00:02]} 4. d4 {[%clk 00:10:16]} {[%emt 00:00:01]} cxd4
{[%clk 00:10:20]} {[%emt 00:00:02]} 5. cxd4 {[%clk 00:10:20]} Bb4+ {[%clk
00:09:47]} {[%emt 00:00:38]} 6. Bd2 {[%clk 00:10:18]} {[%emt 00:00:07]} Qa5
{[%clk 00:09:37]} {[%emt 00:00:15]} 7. Nc3 {[%clk 00:09:42]} {[%emt 00:00:40]}
Nge7 {[%clk 00:09:16]} {[%emt 00:00:27]} 8. a3 {[%clk 00:09:41]} {[%emt
00:00:07]} Bxc3 {[%clk 00:08:52]} {[%emt 00:00:28]} 9. bxc3 {[%clk 00:09:24]}
{[%emt 00:00:22]} O-O {[%clk 00:08:35]} {[%emt 00:00:22]} 10. Be2 {[%clk
00:08:57]} {[%emt 00:00:32]} Qc7 {[%clk 00:07:53]} {[%emt 00:00:47]} 11. O-O
{[%clk 00:08:52]} {[%emt 00:00:09]} b6 {[%clk 00:07:54]} {[%emt 00:00:04]} 12.
c4 {[%clk 00:08:21]} {[%emt 00:00:36]} Bb7 {[%clk 00:07:57]} {[%emt 00:00:02]}
13. d5 {[%clk 00:08:25]} {[%emt 00:00:01]} Ne5 {[%clk 00:07:53]} {[%emt
00:00:09]} 14. Qc2 {[%clk 00:07:33]} {[%emt 00:00:57]} Rac8 {[%clk 00:07:05]}
{[%emt 00:00:54]} 15. Nxe5 {[%clk 00:07:27]} {[%emt 00:00:11]} Qxe5 {[%emt
00:00:06]} 16. f4 {[%clk 00:06:26]} {[%emt 00:01:05]} Qd4+ {[%clk 00:06:50]}
{[%emt 00:00:20]} 17. Kh1 {[%clk 00:06:25]} {[%emt 00:00:05]} exd5 {[%clk
00:06:46]} {[%emt 00:00:09]} 18. exd5 {[%clk 00:05:49]} {[%emt 00:00:41]} Nxd5
{[%clk 00:06:41]} {[%emt 00:00:11]} 19. Bb4 {[%clk 00:04:12]} {[%emt 00:01:39]}
Ne3 {[%clk 00:05:53]} {[%emt 00:00:55]} 20. Qd3 {[%clk 00:02:43]} {[%emt
00:01:34]} Qxd3 {[%clk 00:05:17]} {[%emt 00:00:42]} 21. Bxd3 {[%clk 00:02:46]}
{[%emt 00:00:02]} Bxg2+ {[%clk 00:05:19]} {[%emt 00:00:03]} 22. Kg1 {[%clk
00:02:49]} {[%emt 00:00:01]} Bxf1 {[%clk 00:05:22]} {[%emt 00:00:03]} 23. Bxf1
{[%clk 00:02:28]} {[%emt 00:00:26]} Nxf1 {[%clk 00:05:23]} {[%emt 00:00:04]} 24.
Bxf8 {[%clk 00:02:29]} {[%emt 00:00:03]} Kxf8 {[%clk 00:05:09]} {[%emt
00:00:19]} 25. Rxf1 {[%clk 00:02:28]} {[%emt 00:00:05]} Rxc4 {[%clk 00:05:12]}
{[%emt 00:00:03]} 26. Rd1 {[%clk 00:02:30]} {[%emt 00:00:03]} Ke7 {[%clk
00:05:07]} {[%emt 00:00:10]} 27. Rf1 {[%clk 00:02:31]} {[%emt 00:00:03]} Rc3
{[%clk 00:04:52]} {[%emt 00:00:21]} 28. a4 {[%clk 00:02:35]} {[%emt 00:00:01]}
Rc4 {[%clk 00:04:56]} 29. a5 {[%clk 00:02:38]} {[%emt 00:00:03]} b5 {[%clk
00:04:51]} {[%emt 00:00:09]} 30. Rb1 {[%clk 00:02:32]} {[%emt 00:00:10]} a6
{[%clk 00:04:55]} {[%emt 00:00:03]} 31. Re1+ {[%clk 00:02:00]} {[%emt
00:00:37]} Kf6 {[%clk 00:04:53]} {[%emt 00:00:07]} 32. Re5 {[%clk 00:01:43]}
{[%emt 00:00:20]} Rxf4 {[%clk 00:04:43]} {[%emt 00:00:16]} 33. Rc5 {[%clk
00:01:35]} {[%emt 00:00:12]} Rc4 {[%clk 00:04:33]} {[%emt 00:00:16]} 34. Rd5
{[%clk 00:01:34]} {[%emt 00:00:07]} Ke6 {[%clk 00:04:36]} {[%emt 00:00:01]} 35.
Rh5 {[%clk 00:01:07]} {[%emt 00:00:32]} h6 {[%clk 00:04:34]} {[%emt 00:00:07]}
36. Rh3 {[%clk 00:01:10]} {[%emt 00:00:02]} Re4 {[%clk 00:03:56]} {[%emt
00:00:43]} 37. Kf2 {[%clk 00:00:29]} {[%emt 00:00:45]} f5 {[%clk 00:03:46]}
{[%emt 00:00:17]} 38. Rc3 {[%clk 00:00:26]} {[%emt 00:00:07]} Kd5 {[%clk
00:02:51]} {[%emt 00:01:00]} 39. Rc7 {[%clk 00:00:17]} {[%emt 00:00:14]} g5
{[%clk 00:02:07]} {[%emt 00:00:49]} 40. Rxd7+ {[%clk 00:00:14]} {[%emt
00:00:08]} Kc5 {[%clk 00:01:53]} {[%emt 00:00:19]} 41. Ra7 {[%clk 00:00:15]}
{[%emt 00:00:03]} Re6 {[%clk 00:01:51]} {[%emt 00:00:07]} 42. Rc7+ {[%clk
00:00:07]} {[%emt 00:00:14]} Kb4 {[%clk 00:01:51]} {[%emt 00:00:05]} 43. Rf7
{[%clk 00:00:08]} {[%emt 00:00:03]} f4 {[%clk 00:01:51]} {[%emt 00:00:06]} 44.
Kf3 {[%clk 00:00:10]} {[%emt 00:00:04]} h5 {[%clk 00:01:43]} {[%emt 00:00:13]}
45. h4 {[%clk 00:00:10]} {[%emt 00:00:05]} Re3+ {[%clk 00:01:36]} {[%emt
00:00:12]} 46. Kf2 {[%clk 00:00:12]} {[%emt 00:00:03]} g4 {[%clk 00:01:37]}
{[%emt 00:00:04]} 47. Rxf4+ {[%clk 00:00:15]} {[%emt 00:00:02]} Rf3+ {[%clk
00:01:42]} 48. Rxf3 {[%clk 00:00:16]} {[%emt 00:00:03]} gxf3 {[%clk 00:01:46]}
49. Kxf3 {[%clk 00:00:20]} {[%emt 00:00:02]} 0-1

[Event "Ruzomberok Closed 2020 - 3. turnaj"]
[Site "Ruzomberok, Slovakia"]
[Date "2020.09.05"]
[Round "4.4"]
[White "Konkolova, Nikola"]
[Black "Novak, Michal"]
[Result "1-0"]
[TimeControl "10m + 5s"]
[WhiteElo "1483"]
[BlackElo "1096"]

1. e4 {[%clk 00:10:07]} {[%emt 00:00:02]} d5 {[%clk 00:10:07]} {[%emt
00:00:04]} 2. exd5 {[%clk 00:10:10]} {[%emt 00:00:02]} Qxd5 {[%clk 00:10:10]}
{[%emt 00:00:02]} 3. Qf3 {[%clk 00:10:13]} {[%emt 00:00:02]} Nf6 {[%clk
00:10:10]} {[%emt 00:00:06]} 4. Nc3 {[%clk 00:10:16]} {[%emt 00:00:02]} Qd8
{[%clk 00:10:09]} {[%emt 00:00:05]} 5. Bc4 {[%clk 00:10:05]} {[%emt 00:00:16]}
Bg4 {[%clk 00:10:12]} {[%emt 00:00:02]} 6. Qxb7 {[%clk 00:09:59]} {[%emt
00:00:10]} Nbd7 {[%clk 00:10:08]} {[%emt 00:00:09]} 7. Bb5 {[%clk 00:09:31]}
{[%emt 00:00:34]} Bf5 {[%clk 00:09:41]} {[%emt 00:00:32]} 8. d3 {[%clk
00:09:22]} {[%emt 00:00:14]} e6 {[%clk 00:09:40]} {[%emt 00:00:05]} 9. Bg5
{[%clk 00:09:07]} {[%emt 00:00:21]} Qb8 {[%clk 00:08:28]} {[%emt 00:01:18]} 10.
Qc6 {[%clk 00:08:36]} {[%emt 00:00:36]} e5 {[%clk 00:08:08]} {[%emt 00:00:25]}
11. Bxf6 {[%clk 00:08:28]} {[%emt 00:00:12]} gxf6 {[%clk 00:08:10]} {[%emt
00:00:03]} 12. Qxf6 {[%clk 00:08:18]} {[%emt 00:00:14]} Rg8 {[%clk 00:07:25]}
{[%emt 00:00:51]} 13. Qxf5 {[%clk 00:08:11]} {[%emt 00:00:12]} Qd8 {[%clk
00:07:24]} {[%emt 00:00:07]} 14. Nd5 {[%clk 00:07:30]} {[%emt 00:00:45]} Be7
{[%clk 00:07:08]} {[%emt 00:00:21]} 15. Qxe5 {[%clk 00:06:57]} {[%emt
00:00:38]} a6 {[%clk 00:07:08]} {[%emt 00:00:06]} 16. Nf6+ {[%clk 00:06:40]}
{[%emt 00:00:21]} Kf8 {[%clk 00:06:59]} {[%emt 00:00:14]} 17. Nxd7+ {[%emt
00:00:39]} Ke8 {[%clk 00:06:54]} {[%emt 00:00:07]} 18. Nf6+ {[%clk 00:05:41]}
{[%emt 00:00:32]} Kf8 {[%clk 00:06:56]} {[%emt 00:00:03]} 19. Nxh7# {[%clk
00:05:37]} {[%emt 00:00:09]} 1-0

[Event "Ruzomberok Closed 2020 - 3. turnaj"]
[Site "Ruzomberok, Slovakia"]
[Date "2020.09.05"]
[Round "4.5"]
[White "Sustek, Adam"]
[Black "Ciglian, Michal"]
[Result "0-1"]
[TimeControl "10m + 5s"]
[WhiteElo "1377"]
[BlackElo "1388"]

1. e4 {[%clk 00:10:08]} {[%emt 00:00:02]} e5 {[%clk 00:10:09]} {[%emt
00:00:01]} 2. Nf3 {[%clk 00:10:11]} Nc6 {[%clk 00:10:13]} {[%emt 00:00:01]} 3.
Bc4 {[%clk 00:10:15]} {[%emt 00:00:02]} Bc5 {[%clk 00:10:16]} {[%emt 00:00:02]}
4. c3 {[%clk 00:10:19]} {[%emt 00:00:01]} d6 {[%clk 00:10:20]} {[%emt
00:00:01]} 5. d3 {[%clk 00:10:22]} {[%emt 00:00:02]} Bg4 {[%clk 00:10:23]}
{[%emt 00:00:02]} 6. h3 {[%clk 00:10:22]} {[%emt 00:00:04]} Bh5 {[%clk
00:10:26]} {[%emt 00:00:02]} 7. Nbd2 {[%clk 00:10:23]} {[%emt 00:00:04]} Nge7
{[%clk 00:10:29]} {[%emt 00:00:02]} 8. Bb3 {[%clk 00:09:55]} {[%emt 00:00:34]}
Qd7 {[%clk 00:10:29]} {[%emt 00:00:05]} 9. O-O {[%clk 00:09:25]} {[%emt
00:00:35]} O-O-O {[%clk 00:10:27]} {[%emt 00:00:07]} 10. Re1 {[%clk 00:08:22]}
{[%emt 00:01:08]} Bb6 {[%clk 00:10:19]} {[%emt 00:00:13]} 11. Nf1 {[%clk
00:08:19]} {[%emt 00:00:08]} Bg6 {[%clk 00:10:19]} {[%emt 00:00:05]} 12. Be3
{[%clk 00:08:12]} {[%emt 00:00:12]} f5 {[%clk 00:10:06]} {[%emt 00:00:18]} 13.
Ng5 {[%clk 00:07:07]} {[%emt 00:01:11]} Rdf8 {[%clk 00:09:44]} {[%emt
00:00:26]} 14. Be6 {[%clk 00:07:02]} {[%emt 00:00:09]} Qxe6 {[%clk 00:09:43]}
{[%emt 00:00:07]} 15. Nxe6 {[%clk 00:07:05]} {[%emt 00:00:02]} Rf6 {[%clk
00:09:46]} {[%emt 00:00:01]} 16. exf5 {[%clk 00:06:44]} {[%emt 00:00:26]} Bxf5
{[%clk 00:09:46]} {[%emt 00:00:05]} 17. Ng5 {[%clk 00:06:34]} {[%emt 00:00:15]}
h6 {[%clk 00:09:45]} {[%emt 00:00:06]} 18. Ne4 {[%clk 00:06:20]} {[%emt
00:00:19]} Rg6 {[%clk 00:09:31]} {[%emt 00:00:19]} 19. Nfg3 {[%clk 00:06:08]}
{[%emt 00:00:17]} Be6 {[%clk 00:09:13]} {[%emt 00:00:22]} 20. Bxb6 {[%clk
00:05:57]} {[%emt 00:00:17]} axb6 {[%clk 00:09:16]} {[%emt 00:00:02]} 21. a4
{[%clk 00:05:42]} {[%emt 00:00:20]} h5 {[%clk 00:09:08]} {[%emt 00:00:13]} 22.
h4 {[%clk 00:05:04]} {[%emt 00:00:42]} Rg4 {[%clk 00:08:59]} {[%emt 00:00:14]}
23. Ng5 {[%emt 00:00:34]} Bd7 {[%clk 00:08:47]} 24. Nf3 {[%clk 00:04:38]}
{[%emt 00:00:19]} Rf8 {[%clk 00:08:20]} {[%emt 00:00:32]} 25. Nxh5 {[%clk
00:03:44]} {[%emt 00:00:59]} Rg6 {[%clk 00:06:59]} {[%emt 00:01:27]} 26. Ng3
{[%clk 00:03:34]} {[%emt 00:00:15]} Bg4 {[%clk 00:06:55]} {[%emt 00:00:08]} 27.
b4 {[%clk 00:03:13]} {[%emt 00:00:27]} Nd5 {[%clk 00:06:38]} {[%emt 00:00:22]}
28. Kh2 {[%clk 00:01:52]} {[%emt 00:01:26]} Nxc3 {[%clk 00:06:36]} {[%emt
00:00:08]} 29. Qc2 {[%clk 00:01:50]} {[%emt 00:00:06]} Nd5 {[%clk 00:06:36]}
{[%emt 00:00:05]} 30. b5 {[%clk 00:01:05]} {[%emt 00:00:51]} Nce7 {[%clk
00:05:16]} {[%emt 00:01:24]} 31. Ng5 {[%clk 00:01:05]} {[%emt 00:00:05]} Rh8
{[%clk 00:05:04]} {[%emt 00:00:18]} 32. Nf3 {[%clk 00:00:59]} {[%emt 00:00:12]}
Rgh6 {[%clk 00:04:40]} {[%emt 00:00:28]} 33. Rh1 {[%clk 00:00:37]} {[%emt
00:00:27]} Nf4 {[%clk 00:03:48]} {[%emt 00:00:57]} 34. Kg1 {[%clk 00:00:33]}
{[%emt 00:00:08]} Ned5 {[%clk 00:03:04]} {[%emt 00:00:50]} 35. Qd2 {[%clk
00:00:25]} {[%emt 00:00:13]} Be6 {[%clk 00:02:21]} {[%emt 00:00:47]} 36. Ng5
{[%clk 00:00:19]} {[%emt 00:00:11]} Bg8 {[%clk 00:02:16]} {[%emt 00:00:10]} 37.
Nf5 {[%clk 00:00:13]} {[%emt 00:00:11]} Rf6 {[%clk 00:02:13]} {[%emt 00:00:08]}
38. Ne3 {[%clk 00:00:13]} {[%emt 00:00:05]} Ne7 {[%clk 00:01:29]} {[%emt
00:00:49]} 39. g3 {[%clk 00:00:17]} {[%emt 00:00:02]} Nfd5 {[%clk 00:01:10]}
{[%emt 00:00:23]} 40. Nxd5 {[%clk 00:00:17]} {[%emt 00:00:05]} Bxd5 {[%clk
00:01:14]} {[%emt 00:00:02]} 41. Rh2 {[%clk 00:00:18]} {[%emt 00:00:04]} Nf5
{[%clk 00:01:14]} {[%emt 00:00:05]} 42. Re1 {[%clk 00:00:13]} {[%emt 00:00:10]}
Nd4 {[%clk 00:01:14]} {[%emt 00:00:04]} 43. Ne4 {[%clk 00:00:12]} {[%emt
00:00:06]} Bxe4 {[%clk 00:01:16]} {[%emt 00:00:03]} 44. dxe4 {[%clk 00:00:14]}
{[%emt 00:00:03]} Nf3+ {[%clk 00:01:20]} 45. Kg2 {[%clk 00:00:16]} {[%emt
00:00:03]} Nxd2 {[%clk 00:01:23]} {[%emt 00:00:02]} 46. Re3 {[%clk 00:00:13]}
{[%emt 00:00:07]} Rhf8 {[%clk 00:01:23]} {[%emt 00:00:05]} 47. Kg1 {[%clk
00:00:12]} {[%emt 00:00:06]} Nf3+ {[%clk 00:01:26]} {[%emt 00:00:03]} 0-1